bitfinex/quotes_BTCUSD_20250101
["timestamp","ask_amount","ask_price","bid_price","bid_amount"]
[1735718757522,0.53623359,93876.0,93875.0,2e-07]
[1735718757799,0.53523359,93876.0,93875.0,2e-07]
[1735718758020,0.53623359,93876.0,93875.0,2e-07]
[1735718758768,0.54223359,93876.0,93875.0,2e-07]
[1735718758997,0.15,93864.0,93863.0,0.0001706]
[1735718759165,2.57561632,93864.0,93863.0,0.0001706]
[1735718759396,2.59330505,93864.0,93863.0,0.0001706]
[1735718760344,2.59430505,93864.0,93863.0,0.0001706]
[1735718760568,3.09730505,93864.0,93863.0,0.0001706]
[1735718761960,3.00841205,93864.0,93863.0,0.0001706]
[1735718762460,3.10841205,93864.0,93863.0,0.0001706]
[1735718763991,3.30016609,93864.0,93863.0,0.0001706]
[1735718764218,3.30011176,93864.0,93863.0,0.0001706]
[1735718765249,3.02158976,93864.0,93863.0,0.0001706]
[1735718765745,3.02458976,93864.0,93863.0,0.0001706]
[1735718766001,2.83383572,93864.0,93863.0,0.0001706]
[1735718766204,2.85053348,93864.0,93863.0,0.0001706]
[1735718766699,2.85053348,93864.0,93859.0,0.0001412]
[1735718766951,0.15,93862.0,93859.0,0.0001412]
[1735718767199,0.15,93860.0,93859.0,0.0001412]
[1735718767657,2.2663185,93860.0,93859.0,0.0001412]
[1735718767902,2.37030482,93860.0,93859.0,0.0001412]
[1735718769399,2.37230482,93860.0,93859.0,0.0001412]
[1735718769654,2.37330482,93860.0,93859.0,0.0001412]
[1735718769854,2.66117636,93860.0,93859.0,0.0001412]
[1735718770632,2.67787421,93860.0,93859.0,0.0001412]
[1735718771163,2.57884121,93860.0,93859.0,0.0001412]
[1735718771423,2.48433921,93860.0,93859.0,0.0001412]
[1735718771917,2.46764136,93860.0,93859.0,0.0001412]
[1735718772115,2.46664136,93860.0,93859.0,0.0001412]
[1735718772392,2.46464136,93860.0,93859.0,0.0001412]
[1735718772638,2.17976982,93860.0,93859.0,0.0001412]
[1735718773153,2.17676982,93860.0,93859.0,0.0001412]
[1735718773409,2.17976982,93860.0,93859.0,0.0001412]
[1735718773912,2.17876982,93860.0,93859.0,0.0001412]
[1735718774164,2.17976982,93860.0,93859.0,0.0001412]
[1735718774877,0.27466982,93860.0,93859.0,0.0001412]
[1735718775123,2.24202782,93860.0,93859.0,0.0001412]
[1735718775366,2.21412482,93860.0,93859.0,0.0001412]
[1735718775600,2.21712482,93860.0,93859.0,0.0001412]
[1735718776024,2.21412482,93860.0,93859.0,0.0001412]
[1735718776343,2.21612482,93860.0,93859.0,0.0001412]
[1735718776805,2.15751282,93860.0,93859.0,0.0001412]
[1735718777013,2.14724782,93860.0,93859.0,0.0001412]
[1735718779122,2.43511936,93860.0,93859.0,0.0001412]
[1735718780203,2.30999436,93860.0,93859.0,0.0001412]
[1735718780610,2.20323936,93860.0,93859.0,0.0001412]
[1735718781188,1.91536782,93860.0,93859.0,0.0001412]
[1735718782342,1.91436782,93860.0,93859.0,0.0001412]
[1735718782481,1.91236782,93860.0,93859.0,0.0001412]
[1735718782682,1.91536782,93860.0,93859.0,0.0001412]
[1735718783109,1.91236782,93860.0,93859.0,0.0001412]
[1735718783310,1.91536782,93860.0,93859.0,0.0001412]
[1735718784119,1.76242282,93860.0,93859.0,0.0001412]
[1735718784332,1.69925482,93860.0,93859.0,0.0001412]
[1735718784741,1.06886082,93860.0,93859.0,0.0001412]
[1735718784957,1.06894612,93860.0,93859.0,0.0001412]
[1735718785395,0.27475512,93860.0,93859.0,0.0001412]
[1735718785606,1.54163812,93860.0,93859.0,0.0001412]
[1735718786603,1.31898812,93860.0,93859.0,0.0001412]
[1735718786821,1.24943512,93860.0,93859.0,0.0001412]
[1735718788051,1.01960112,93860.0,93859.0,0.0001412]
[1735718791363,1.51960112,93860.0,93859.0,0.0001412]
[1735718791493,1.51860112,93860.0,93859.0,0.0001412]
[1735718791712,1.51760112,93860.0,93859.0,0.0001412]
[1735718791898,1.51960112,93860.0,93859.0,0.0001412]
[1735718792728,1.51660112,93860.0,93859.0,0.0001412]
[1735718793139,1.51860112,93860.0,93859.0,0.0001412]
[1735718794172,1.51960112,93860.0,93859.0,0.0001412]
[1735718794808,1.51960112,93860.0,93859.0,0.13922752]
[1735718794809,0.65618153,93860.0,93859.0,0.13922752]
[1735718795030,0.4658918,93860.0,93859.0,0.66065284]
[1735718795235,0.4658918,93860.0,93859.0,0.76065284]
[1735718795441,0.46343946,93860.0,93859.0,0.8604159]
[1735718795644,0.46343946,93860.0,93859.0,1.4520799]
[1735718795864,0.46143946,93860.0,93859.0,1.5646799]
[1735718796078,0.50638946,93860.0,93859.0,1.5646799]
[1735718796284,0.50838946,93860.0,93859.0,1.61011977]
[1735718796501,0.50638946,93860.0,93859.0,1.61011977]
[1735718796734,0.50638946,93860.0,93859.0,1.49138956]
[1735718796984,0.50738946,93860.0,93859.0,1.49138956]
[1735718797194,0.50747476,93860.0,93859.0,1.49138956]
[1735718797393,0.50756068,93860.0,93859.0,1.49138956]
[1735718797594,0.50856068,93860.0,93859.0,1.49138956]
[1735718797823,0.50856068,93860.0,93859.0,1.84494172]
[1735718798005,0.50656068,93860.0,93859.0,1.83594172]
[1735718798204,0.50647476,93860.0,93859.0,1.86390887]
[1735718798377,0.37914816,93860.0,93859.0,1.88190887]
[1735718798703,8.53e-05,93875.0,93874.0,0.63349132]
[1735718798990,8.53e-05,93875.0,93874.0,0.76047764]
[1735718799514,5.1e-07,93878.0,93877.0,0.65648432]
[1735718799713,5.1e-07,93878.0,93877.0,0.76047064]
[1735718801533,5.1e-07,93878.0,93877.0,0.76947064]
[1735718801966,5.1e-07,93878.0,93877.0,0.76047064]
[1735718802368,5.1e-07,93878.0,93877.0,0.76947064]
[1735718802605,5.1e-07,93878.0,93877.0,0.77847064]
[1735718803451,5.1e-07,93878.0,93877.0,0.76947064]
[1735718803665,5.1e-07,93878.0,93877.0,0.76047064]
[1735718804117,5.1e-07,93878.0,93877.0,0.76947064]
[1735718804683,8.53e-05,93926.0,93882.0,0.50647332]
[1735718804893,8.53e-05,93926.0,93882.0,0.61045964]
[1735718806012,8.53e-05,93926.0,93882.0,0.61945964]
[1735718806338,0.01668714,93915.0,93882.0,0.61945964]
[1735718806753,0.15,93926.0,93919.0,0.07044032]
[1735718806975,8.363e-05,93925.0,93919.0,0.07044032]
[1735718807187,0.00639019,93925.0,93919.0,0.07044032]
[1735718807394,0.00639019,93925.0,93924.0,0.07044032]
[1735718808626,0.00639019,93925.0,93924.0,0.08044032]
[1735718824786,0.00639019,93925.0,93924.0,0.09788992]
[1735718825234,0.02307533,93925.0,93924.0,0.09788992]
[1735718825597,0.09807533,93925.0,93924.0,0.09788992]
[1735718826834,0.09807533,93925.0,93924.0,0.08044032]
[1735718827588,0.08139019,93925.0,93924.0,0.08044032]
[1735718832206,0.0980754,93925.0,93924.0,0.08044032]
[1735718832937,0.08139019,93925.0,93924.0,0.08061092]
[1735718835612,0.28059019,93925.0,93924.0,0.08061092]
[1735718835897,0.29727541,93925.0,93924.0,0.08061092]
[1735718837045,0.28059019,93925.0,93924.0,0.08061092]
[1735718838726,0.28059019,93925.0,93924.0,0.0101706]
[1735718838978,0.60859419,93925.0,93924.0,0.0101706]
[1735718839995,0.60859419,93925.0,93924.0,0.0071706]
[1735718840240,0.60859419,93925.0,93924.0,0.0091706]
[1735718840473,0.60859419,93925.0,93924.0,0.0021706]
[1735718840675,0.71258051,93925.0,93924.0,0.0051706]
[1735718841068,0.71258051,93925.0,93924.0,0.0021706]
[1735718841269,0.71258051,93925.0,93924.0,0.0031706]
[1735718841777,0.72926775,93925.0,93924.0,0.0011706]
[1735718842445,0.71258051,93925.0,93924.0,0.0011706]
[1735718843036,0.60859419,93925.0,93924.0,0.0011706]
[1735718845524,0.62528145,93925.0,93924.0,0.0011706]
[1735718845734,0.33350033,93925.0,93924.0,0.0011706]
[1735718847776,0.48350033,93925.0,93924.0,0.0011706]
[1735718847909,0.28042258,93925.0,93924.0,0.0011706]
[1735718848724,0.49800236,93925.0,93924.0,0.0011706]
[1735718849744,0.51468971,93925.0,93924.0,0.0011706]
[1735718849956,0.49800236,93925.0,93924.0,0.0011706]
[1735718851292,1.89996511,93925.0,93924.0,0.0011706]
[1735718852856,1.62719611,93925.0,93924.0,0.0011706]
[1735718853280,1.51591611,93925.0,93924.0,0.0011706]
[1735718856677,1.61990243,93925.0,93924.0,0.0011706]
[1735718857030,1.63658947,93925.0,93924.0,0.0011706]
[1735718857454,1.61990243,93925.0,93924.0,0.0001706]
[1735718858101,1.81144924,93925.0,93924.0,0.0001706]
[1735718858913,1.61990243,93925.0,93924.0,0.0001706]
[1735718859438,1.61983742,93925.0,93924.0,0.0001706]
[1735718862364,1.6198816,93925.0,93924.0,0.0001706]
[1735718866104,1.63656867,93925.0,93924.0,0.0001706]
[1735718866902,1.63665397,93925.0,93924.0,0.0001706]
[1735718868248,1.54467419,93925.0,93924.0,0.0001706]
[1735718868591,0.40183419,93925.0,93924.0,0.0001706]
[1735718868799,1.81843019,93925.0,93924.0,0.0001706]
[1735718869583,1.80174312,93925.0,93924.0,0.0001706]
[1735718869784,1.34652612,93925.0,93924.0,0.0001706]
[1735718872257,1.45051244,93925.0,93924.0,0.0001706]
[1735718873749,1.34652612,93925.0,93924.0,0.0001706]
[1735718876989,0.6637418,93925.0,93924.0,0.0001706]
[1735718877164,0.4309878,93925.0,93924.0,0.0001706]
[1735718879121,0.2811608,93925.0,93924.0,0.0001706]
[1735718879424,1.5332768,93925.0,93924.0,0.0001706]
[1735718879929,1.59606074,93925.0,93924.0,0.0001706]
[1735718880505,0.91146674,93925.0,93924.0,0.0001706]
[1735718884216,1.19933828,93925.0,93924.0,0.0001706]
[1735718884776,0.91146674,93925.0,93924.0,0.0001706]
[1735718888170,0.91142256,93925.0,93924.0,0.0001706]
[1735718890581,1.01540888,93925.0,93924.0,0.0001706]
[1735718892811,1.01544987,93925.0,93924.0,0.0001706]
[1735718915500,0.44792787,93925.0,93924.0,0.0001706]
[1735718915623,1.84871087,93925.0,93924.0,0.0001706]
[1735718917470,1.83725387,93925.0,93924.0,0.0001706]
[1735718918118,1.83721288,93925.0,93924.0,0.0001706]
[1735718919016,1.76371588,93925.0,93924.0,0.0001706]
[1735718920829,1.73941688,93925.0,93924.0,0.0001706]
[1735718922169,1.73945787,93925.0,93924.0,0.0001706]
[1735718925983,0.44792787,93925.0,93924.0,0.0001706]
[1735718926193,1.76907387,93925.0,93924.0,0.0001706]
[1735718926394,1.73618087,93925.0,93924.0,0.0001706]
[1735718928869,1.58665288,93925.0,93924.0,0.0001706]
[1735718929077,1.60338781,93925.0,93924.0,0.0001706]
[1735718935494,1.92822857,93925.0,93924.0,0.0001706]
[1735718936490,0.212985,93904.0,93900.0,0.14554032]
[1735718936934,0.00539437,93903.0,93900.0,0.14554032]
[1735718937611,0.212988,93902.0,93900.0,0.14554032]
[1735718937765,0.212988,93902.0,93900.0,0.14854032]
[1735718938267,0.19776222,93903.0,93900.0,0.14854032]
[1735718938696,0.19776222,93903.0,93900.0,0.15754032]
[1735718938902,0.00539437,93903.0,93900.0,0.15454032]
[1735718939122,0.00539437,93903.0,93900.0,0.14554032]
[1735718939325,0.00539437,93903.0,93900.0,0.15454032]
[1735718939702,0.00539437,93903.0,93900.0,0.14554032]
[1735718940048,0.00539437,93903.0,93900.0,0.15454032]
[1735718940259,0.00539437,93903.0,93900.0,0.15854032]
[1735718940697,0.02208186,93903.0,93900.0,0.15854032]
[1735718940907,0.21444971,93903.0,93900.0,0.15854032]
[1735718942076,0.02208186,93903.0,93900.0,0.15854032]
[1735718942893,0.212988,93902.0,93900.0,0.15854032]
[1735718943787,0.212988,93902.0,93900.0,0.15454032]
[1735718944182,0.212988,93902.0,93900.0,0.15854032]
[1735718944362,0.23556236,93902.0,93900.0,0.15854032]
[1735718944996,0.23556236,93902.0,93900.0,0.14954032]
[1735718945619,0.23556236,93902.0,93900.0,0.07444032]
[1735718946041,0.23556236,93902.0,93900.0,0.08361092]
[1735718947411,0.10398632,93901.0,93900.0,0.08361092]
[1735718948140,0.10398632,93901.0,93900.0,0.07461092]
[1735718948571,0.10398632,93901.0,93900.0,0.08361092]
[1735718948871,0.10398632,93901.0,93900.0,0.0131706]
[1735718949282,0.10398632,93901.0,93900.0,0.07961092]
[1735718949771,0.10398632,93901.0,93900.0,0.0091706]
[1735718950080,0.10398632,93901.0,93900.0,0.0131706]
[1735718950328,0.10937667,93901.0,93900.0,0.0131706]
[1735718953049,0.25937667,93901.0,93900.0,0.0091706]
[1735718953461,0.25937667,93901.0,93900.0,0.0111706]
[1735718954600,0.25937667,93901.0,93900.0,0.0001706]
[1735718954787,0.25937667,93901.0,93900.0,0.0081706]
[1735718954999,0.25937667,93901.0,93900.0,0.0021706]
[1735718955844,0.25937667,93901.0,93900.0,0.0081706]
[1735718956500,0.49977668,93901.0,93900.0,0.0081706]
[1735718957067,0.49977668,93901.0,93900.0,0.0061706]
[1735718957276,0.49977668,93901.0,93900.0,0.0071706]
[1735718957573,0.5164663,93901.0,93900.0,0.0011706]
[1735718957817,0.5164663,93901.0,93900.0,0.0001706]
[1735718957971,0.5164663,93901.0,93900.0,0.0041706]
[1735718958589,0.49977668,93901.0,93900.0,0.0041706]
[1735718959157,0.49977668,93901.0,93900.0,0.0051706]
[1735718959367,0.25937667,93901.0,93900.0,0.0051706]
[1735718961911,0.27606507,93901.0,93900.0,0.0051706]
[1735718962354,0.25937667,93901.0,93900.0,0.0051706]
[1735718966367,0.27606507,93901.0,93900.0,0.0051706]
[1735718968265,0.27606507,93901.0,93900.0,0.0011706]
[1735718968470,0.27606507,93901.0,93900.0,0.0031706]
[1735718968751,0.27606507,93901.0,93900.0,0.0011706]
[1735718969265,0.25937667,93901.0,93900.0,0.0031706]
[1735718969454,0.25937667,93901.0,93900.0,0.0041706]
[1735718976287,0.27606501,93901.0,93900.0,0.0041706]
[1735718977751,0.51646502,93901.0,93900.0,0.0041706]
[1735718978703,0.17207869,93901.0,93900.0,0.0041706]
[1735718981364,0.15539035,93901.0,93900.0,0.0041706]
[1735718982965,0.39579036,93901.0,93900.0,0.0041706]
[1735718984585,0.15539035,93901.0,93900.0,0.0041706]
[1735718984780,0.15539035,93901.0,93900.0,0.0031706]
[1735718984981,0.22597669,93901.0,93900.0,0.0011706]
[1735718985303,0.22597669,93901.0,93900.0,0.0041706]
[1735718985510,0.22597669,93901.0,93900.0,0.0031706]
[1735718985653,0.24266505,93901.0,93900.0,0.0041706]
[1735718986575,0.17207871,93901.0,93900.0,0.0041706]
[1735718986782,0.41242986,93901.0,93900.0,0.0041706]
[1735718987665,0.17207871,93901.0,93900.0,0.0041706]
[1735718992440,0.41245318,93901.0,93900.0,0.0041706]
[1735718992985,0.14444276,93901.0,93900.0,0.0041706]
[1735718993194,0.288788,93902.0,93900.0,0.0041706]
[1735718994060,0.288788,93902.0,93900.0,0.0011706]
[1735718994262,0.48112172,93902.0,93900.0,0.0011706]
[1735718994460,0.48112172,93902.0,93900.0,0.0001706]
[1735718994798,0.48112172,93902.0,93900.0,0.0011706]
[1735718995207,0.288788,93902.0,93900.0,0.0011706]
[1735718995741,0.288788,93902.0,93900.0,0.0031706]
[1735718996360,0.48112172,93902.0,93900.0,0.0031706]
[1735718997044,0.07428067,93901.0,93900.0,0.0031706]
[1735718998171,0.07428067,93901.0,93900.0,0.0021706]
[1735718998379,0.26666331,93901.0,93900.0,0.0031706]
[1735718998836,0.26666331,93901.0,93900.0,0.0011706]
[1735718999070,0.41666331,93901.0,93900.0,0.0041706]
[1735718999917,0.22428067,93901.0,93900.0,0.0011706]
[1735719000090,0.22428067,93901.0,93900.0,0.0021706]
[1735719000535,0.22428067,93901.0,93900.0,0.0011706]
[1735719002223,0.41666054,93901.0,93900.0,0.0011706]
[1735719004694,0.22428067,93901.0,93900.0,0.0011706]
[1735719004890,0.22436597,93901.0,93900.0,0.0011706]
[1735719006531,0.32325492,93901.0,93900.0,0.0011706]
[1735719008565,0.30656597,93901.0,93900.0,0.0011706]
[1735719013111,0.32325486,93901.0,93900.0,0.0011706]
[1735719018743,0.30656597,93901.0,93900.0,0.0011706]
[1735719024151,0.30656597,93901.0,93900.0,0.0001706]
[1735719025507,0.15,93899.0,93887.0,0.07044032]
[1735719025740,0.15,93897.0,93887.0,0.07044032]
[1735719026145,0.16668895,93897.0,93887.0,0.07044032]
[1735719026773,0.15,93891.0,93887.0,0.07044032]
[1735719026986,0.15,93891.0,93887.0,0.07144032]
[1735719027373,0.15,93891.0,93887.0,0.07344032]
[1735719027827,0.15,93891.0,93887.0,0.07144032]
[1735719028001,0.15,93891.0,93887.0,0.07644032]
[1735719028443,0.15,93891.0,93887.0,0.07544032]
[1735719028659,0.15,93891.0,93887.0,0.07744032]
[1735719031851,0.0149513,93890.0,93887.0,0.07744032]
[1735719032728,0.0149513,93890.0,93887.0,0.07544032]
[1735719032935,0.0149513,93890.0,93887.0,0.07244032]
[1735719033111,0.0149513,93890.0,93887.0,0.07744032]
[1735719033335,0.11128353,93892.0,93887.0,0.07744032]
[1735719033522,0.01245583,93889.0,93887.0,0.07744032]
[1735719033736,0.213011,93892.0,93887.0,0.07744032]
[1735719033939,0.01245583,93888.0,93887.0,0.07744032]
[1735719034138,0.213011,93892.0,93887.0,0.07744032]
[1735719034365,0.01245583,93888.0,93887.0,0.07744032]
[1735719034547,0.213011,93892.0,93887.0,0.07244032]
[1735719034776,0.01245583,93888.0,93887.0,0.07644032]
[1735719034955,0.213011,93892.0,93887.0,0.07644032]
[1735719035097,0.01245583,93888.0,93887.0,0.07644032]
[1735719035298,0.213011,93892.0,93887.0,0.07744032]
[1735719035522,0.01245583,93888.0,93887.0,0.07744032]
[1735719035719,0.213011,93892.0,93887.0,0.07744032]
[1735719035945,0.01245583,93888.0,93887.0,0.07044032]
[1735719036146,0.213011,93892.0,93887.0,0.07044032]
[1735719036357,0.01245583,93888.0,93887.0,0.07244032]
[1735719036678,0.01245583,93888.0,93887.0,0.07744032]
[1735719036852,0.213011,93892.0,93887.0,0.07244032]
[1735719037057,0.01245583,93888.0,93887.0,0.07844032]
[1735719037329,0.213011,93892.0,93887.0,0.07844032]
[1735719037463,0.25502469,93892.0,93887.0,0.07844032]
[1735719037664,0.01245583,93891.0,93887.0,0.07844032]
[1735719038097,0.01245583,93891.0,93887.0,0.07644032]
[1735719038337,0.01245583,93891.0,93887.0,0.07044032]
[1735719038677,0.01245583,93891.0,93887.0,0.07144032]
[1735719039218,0.01245583,93891.0,93887.0,0.07044032]
[1735719039420,0.01245583,93891.0,93887.0,0.07244032]
[1735719039636,0.01245583,93891.0,93887.0,0.07744032]
[1735719039822,0.04971745,93890.0,93887.0,0.07761092]
[1735719040081,0.04971745,93890.0,93887.0,0.07261092]
[1735719040285,0.01245583,93889.0,93887.0,0.07761092]
[1735719041081,0.01245583,93889.0,93887.0,0.07261092]
[1735719041460,0.01245583,93889.0,93887.0,0.07661092]
[1735719041658,0.01245583,93889.0,93887.0,0.07861092]
[1735719042322,0.01245583,93889.0,93887.0,0.07661092]
[1735719042644,0.213011,93892.0,93887.0,0.07861092]
[1735719043213,0.01245583,93891.0,93887.0,0.07861092]
[1735719043641,0.01245583,93891.0,93887.0,0.07261092]
[1735719043919,0.01245583,93891.0,93887.0,0.07761092]
[1735719044334,0.01245583,93891.0,93887.0,0.07261092]
[1735719044536,0.01245583,93891.0,93887.0,0.07761092]
[1735719045007,0.01245583,93891.0,93887.0,0.07561092]
[1735719045307,0.01245583,93891.0,93887.0,0.07661092]
[1735719045512,0.01037985,93890.0,93887.0,0.07661092]
[1735719045932,0.01037985,93890.0,93887.0,0.07561092]
[1735719046244,0.01038525,93889.0,93887.0,0.07761092]
[1735719046413,0.213011,93892.0,93887.0,0.07761092]
[1735719046617,0.01038525,93891.0,93887.0,0.07761092]
[1735719046817,0.01038525,93891.0,93887.0,0.07061092]
[1735719047668,0.01038525,93891.0,93887.0,0.07561092]
[1735719047960,0.01043519,93891.0,93887.0,0.07561092]
[1735719048170,0.01043519,93891.0,93887.0,0.07261092]
[1735719048642,0.01043519,93891.0,93887.0,0.07061092]
[1735719049070,0.01043519,93891.0,93887.0,0.07261092]
[1735719049282,0.01043519,93891.0,93890.0,0.07044032]
[1735719049721,4.994e-05,93891.0,93890.0,0.07044032]
[1735719050513,4.994e-05,93891.0,93890.0,0.07944032]
[1735719051592,4.994e-05,93891.0,93890.0,0.08144032]
[1735719052099,4.994e-05,93891.0,93890.0,0.07944032]
[1735719052250,4.994e-05,93891.0,93890.0,0.08244032]
[1735719060898,0.01044777,93891.0,93890.0,0.08244032]
[1735719061083,4.994e-05,93891.0,93890.0,0.08244032]
[1735719061589,0.02136316,93891.0,93890.0,0.08244032]
[1735719061778,4.994e-05,93891.0,93890.0,0.08244032]
[1735719064246,4.994e-05,93891.0,93890.0,0.08261092]
[1735719067394,4.994e-05,93891.0,93890.0,0.18659724]
[1735719067570,4.994e-05,93891.0,93890.0,0.23539724]
[1735719068773,4.994e-05,93891.0,93890.0,0.22339724]
[1735719068981,4.994e-05,93891.0,93890.0,0.23239724]
[1735719069180,4.994e-05,93891.0,93890.0,0.23539724]
[1735719069384,4.994e-05,93891.0,93890.0,0.22639724]
[1735719069616,4.994e-05,93891.0,93890.0,0.22339724]
[1735719069828,4.994e-05,93891.0,93890.0,0.23239724]
[1735719070082,4.994e-05,93891.0,93890.0,0.22339724]
[1735719070420,4.994e-05,93891.0,93890.0,0.23239724]
[1735719071038,4.994e-05,93891.0,93890.0,0.23739724]
[1735719072443,4.994e-05,93891.0,93890.0,0.18859724]
[1735719090323,0.01044304,93891.0,93890.0,0.18859724]
[1735719092914,0.01039233,93891.0,93890.0,0.18859724]
[1735719093102,0.212992,93900.0,93890.0,0.18859724]
[1735719093309,0.00865801,93899.0,93891.0,0.10398632]
[1735719095205,0.00865801,93899.0,93891.0,0.10798632]
[1735719095641,0.00865801,93899.0,93891.0,0.11698632]
[1735719095841,0.0826,93898.0,93891.0,0.11698632]
[1735719096243,0.00865491,93897.0,93891.0,0.11698632]
[1735719096854,0.00865491,93897.0,93891.0,0.10398632]
[1735719097226,0.00865491,93897.0,93891.0,0.11298632]
[1735719097425,0.00865491,93897.0,93891.0,0.11698632]
[1735719097631,0.00865491,93897.0,93891.0,0.10798632]
[1735719097790,0.00865491,93897.0,93891.0,0.10398632]
[1735719097987,0.00865491,93897.0,93891.0,0.10798632]
[1735719098928,0.00865491,93897.0,93891.0,0.11698632]
[1735719099674,0.00865491,93897.0,93891.0,0.10398632]
[1735719099886,0.00865491,93897.0,93891.0,0.10798632]
[1735719100085,0.00865491,93897.0,93891.0,0.11698632]
[1735719100290,0.00865491,93897.0,93891.0,0.10798632]
[1735719100519,0.00865491,93897.0,93891.0,0.10398632]
[1735719100721,0.00865491,93897.0,93891.0,0.11698632]
[1735719101253,0.00865491,93897.0,93891.0,0.11298632]
[1735719101648,0.00865491,93897.0,93891.0,0.11698632]
[1735719101851,0.00865491,93897.0,93891.0,0.10798632]
[1735719102268,0.00865491,93897.0,93891.0,0.11698632]
[1735719109650,0.00865491,93897.0,93896.0,0.07044032]
[1735719110934,0.00865491,93897.0,93896.0,0.07444032]
[1735719111661,0.00865491,93897.0,93896.0,0.08344032]
[1735719116534,0.28665491,93897.0,93896.0,0.013]
[1735719118411,0.28665491,93897.0,93896.0,0.004]
[1735719118613,0.28665491,93897.0,93896.0,0.008]
[1735719118809,0.28665491,93897.0,93896.0,0.004]
[1735719119217,0.36301,93892.0,93891.0,0.07061092]
[1735719119654,0.37165872,93892.0,93891.0,0.07061092]
[1735719121798,0.37165872,93892.0,93891.0,0.07261092]
[1735719122256,0.37165872,93892.0,93891.0,0.07761092]
[1735719129307,0.37165872,93892.0,93891.0,0.07561092]
[1735719129680,0.37165872,93892.0,93891.0,0.07761092]
[1735719131439,0.37165872,93892.0,93891.0,0.07561092]
[1735719131813,0.37165872,93892.0,93891.0,0.07761092]
[1735719136495,0.00864872,93892.0,93891.0,0.07761092]
[1735719136949,0.36301,93892.0,93891.0,0.07761092]
[1735719137157,0.37156539,93892.0,93891.0,0.07761092]
[1735719146557,0.44282253,93892.0,93891.0,0.07761092]
[1735719147636,0.37156539,93892.0,93891.0,0.07761092]
[1735719150419,0.37165069,93892.0,93891.0,0.07761092]
[1735719158922,0.37165069,93892.0,93891.0,0.0071706]
[1735719159135,0.37165069,93892.0,93891.0,0.07761092]
[1735719165120,0.37165069,93892.0,93891.0,0.0071706]
[1735719165320,0.37165069,93892.0,93891.0,0.07761092]
[1735719166824,0.00864069,93892.0,93891.0,0.07761092]
[1735719169904,0.00713603,93892.0,93891.0,0.07761092]
[1735719170366,0.213001,93896.0,93891.0,0.07761092]
[1735719170609,0.00713603,93892.0,93891.0,0.07761092]
[1735719170850,0.213006,93894.0,93891.0,0.07761092]
[1735719171331,0.21301,93892.0,93891.0,0.07761092]
[1735719171968,0.22014603,93892.0,93891.0,0.07761092]
[1735719172719,0.22014603,93892.0,93891.0,0.07061092]
[1735719172930,0.22014603,93892.0,93891.0,0.07561092]
[1735719173294,0.22014603,93892.0,93891.0,0.07161092]
[1735719173491,0.00713603,93892.0,93891.0,0.07061092]
[1735719173663,0.00713603,93892.0,93891.0,0.07561092]
[1735719173861,0.213006,93894.0,93891.0,0.07761092]
[1735719174081,0.00722133,93892.0,93891.0,0.07761092]
[1735719174276,8.53e-05,93892.0,93891.0,0.07761092]
[1735719174431,0.00722133,93892.0,93891.0,0.07761092]
[1735719174638,8.53e-05,93892.0,93891.0,0.07761092]
[1735719174877,0.00722133,93892.0,93891.0,0.07761092]
[1735719175073,8.53e-05,93892.0,93891.0,0.07761092]
[1735719175272,0.00722133,93892.0,93891.0,0.07761092]
[1735719175480,8.53e-05,93892.0,93891.0,0.07761092]
[1735719175678,0.00722133,93892.0,93891.0,0.07761092]
[1735719175910,8.53e-05,93892.0,93891.0,0.07761092]
[1735719176121,0.00722133,93892.0,93891.0,0.07761092]
[1735719176283,8.53e-05,93892.0,93891.0,0.07561092]
[1735719176468,0.00722133,93892.0,93891.0,0.07561092]
[1735719176680,8.53e-05,93892.0,93891.0,0.07661092]
[1735719176906,0.00722133,93892.0,93891.0,0.07661092]
[1735719177110,8.53e-05,93892.0,93891.0,0.07561092]
[1735719177313,0.00722133,93892.0,93891.0,0.07761092]
[1735719177516,8.53e-05,93892.0,93891.0,0.07761092]
[1735719180782,0.00722133,93892.0,93891.0,0.07761092]
[1735719200428,0.00594603,93892.0,93891.0,0.07761092]
[1735719200804,0.212998,93898.0,93891.0,0.07761092]
[1735719201017,0.00594724,93897.0,93891.0,0.07761092]
[1735719201892,0.00594724,93897.0,93891.0,0.07061092]
[1735719202077,0.00594724,93897.0,93891.0,0.07161092]
[1735719202290,0.00594724,93897.0,93891.0,0.07361092]
[1735719203640,0.00594724,93897.0,93891.0,0.07261092]
[1735719203979,0.00594724,93897.0,93891.0,0.07361092]
[1735719206894,0.29492324,93902.0,93891.0,0.07361092]
[1735719207134,0.00495604,93896.0,93891.0,0.07361092]
[1735719207318,0.21299,93901.0,93891.0,0.07361092]
[1735719207868,0.00495604,93900.0,93891.0,0.07261092]
[1735719208206,0.212994,93899.0,93891.0,0.07061092]
[1735719208659,0.00495604,93898.0,93891.0,0.07361092]
[1735719208913,0.00495604,93898.0,93891.0,0.07061092]
[1735719209098,0.00495604,93898.0,93891.0,0.07161092]
[1735719209808,8.53e-05,93897.0,93891.0,0.07161092]
[1735719210212,0.00495604,93896.0,93891.0,0.07261092]
[1735719210665,0.00495604,93896.0,93891.0,0.07361092]
[1735719211123,0.00495604,93896.0,93891.0,0.07261092]
[1735719211619,0.00495604,93896.0,93891.0,0.07161092]
[1735719211851,0.00495604,93896.0,93891.0,0.07361092]
[1735719212109,0.00495604,93896.0,93891.0,0.07161092]
[1735719212561,0.00495604,93896.0,93891.0,0.07461092]
[1735719240224,0.14407378,93900.0,93891.0,0.07461092]
[1735719240465,0.0806,93899.0,93891.0,0.07461092]
[1735719240695,0.293594,93899.0,93891.0,0.07461092]
[1735719241383,0.293594,93899.0,93891.0,0.07161092]
[1735719241624,0.293594,93899.0,93891.0,0.07261092]
[1735719241852,0.293594,93899.0,93891.0,0.07161092]
[1735719241988,0.293594,93899.0,93891.0,0.07061092]
[1735719242201,0.293594,93899.0,93891.0,0.07161092]
[1735719246023,0.2936793,93899.0,93891.0,0.07161092]
[1735719248586,0.0806853,93899.0,93891.0,0.07161092]
[1735719248842,8.53e-05,93899.0,93898.0,0.07044032]
[1735719249074,8.53e-05,93899.0,93898.0,0.25512664]
[1735719251219,8.53e-05,93899.0,93898.0,0.25912664]
[1735719251459,8.53e-05,93899.0,93898.0,0.26812664]
[1735719254240,8.53e-05,93899.0,93898.0,0.26412664]
[1735719254583,8.53e-05,93899.0,93898.0,0.25512664]
[1735719254796,8.53e-05,93899.0,93898.0,0.26412664]
[1735719255175,8.53e-05,93899.0,93898.0,0.26812664]
[1735719255615,8.53e-05,93899.0,93898.0,0.26412664]
[1735719255984,8.53e-05,93899.0,93898.0,0.26812664]
[1735719256771,8.53e-05,93899.0,93898.0,0.18742664]
[1735719260951,8.53e-05,93899.0,93898.0,0.013]
[1735719261167,8.53e-05,93899.0,93898.0,0.08344032]
[1735719261387,8.53e-05,93899.0,93898.0,0.013]
[1735719264035,8.53e-05,93899.0,93898.0,0.08344032]
[1735719264251,8.53e-05,93899.0,93898.0,0.013]
[1735719265784,8.53e-05,93899.0,93898.0,0.08344032]
[1735719269049,8.53e-05,93899.0,93898.0,0.08361092]
[1735719272349,0.212974,93908.0,93898.0,0.08361092]
[1735719273296,0.212974,93908.0,93898.0,0.07961092]
[1735719273733,0.212974,93908.0,93898.0,0.08261092]